Cogmind - Beta 13 @@@ ROGUE MODE // 2024.05.30 @ 15:09:09 Player: Barbarossa Result: Destroyed by H-61 Shepherd with Heavy Assault Cannon Performance ------------- Evolutions (2) 1000 Regions Visited (3) 600 Robots Destroyed (5) 25 Value Destroyed (63) 63 Prototype IDs (7) 140 Alien Tech Used (0) 0 Bonus (200) 200 TOTAL SCORE: 2028 Bonus ------- Pacifist 200 Cogmind --------- Core Integrity 0/550 Matter 219/300 Energy 99/100 System Corruption 6% Temperature Cool (0) Movement Core (50) Location -8/Materials Parts ------- > --- POWER (1) -------- (None) > --- PROPULSION (4) --- (None) > --- UTILITY (4) ------ (None) > --- WEAPON (2) ------- (None) > --- INVENTORY (5) ---- Light Ion Engine Light Nuclear Core Armored Treads High-capacity Storage Unit Medium Matter Pod (0) Peak State ------------ > --- POWER ------------ Light Ion Engine > --- PROPULSION ------- Armored Treads Flight Unit Flight Unit VTOL Module > --- UTILITY ---------- Small Storage Unit > --- WEAPON ----------- Medium Laser Medium Laser > --- INVENTORY -------- Light Ion Engine Light Ion Engine Light Ion Engine High-capacity Storage Unit Medium Matter Pod [Rating: 11] Favorites ----------- Power Light Ion Engine Engine Light Ion Engine Propulsion Flight Unit Treads Armored Treads Leg Aluminum Leg Flight Unit Flight Unit Utility Small Storage Unit Storage Small Storage Unit Weapon Medium Laser Energy Gun Medium Laser Slashing Weapon Blade Saw Build | -11 -10 -9 -8 ------- Run | Yrd Mat Mat Mat Slots Evolved 4 | . . 2 2 Power . | . . . . Propulsion 2 | . . 2 . Utility 2 | . . . 2 Weapon . | . . . . Parts Attached 12 | . . 7 5 Power 1 | . . 1 . Engine 1 | . . 1 . Core . | . . . . Reactor . | . . . . Propulsion 4 | . . 3 1 Treads 1 | . . . 1 Leg . | . . . . Wheel . | . . . . Hover . | . . . . Flight 3 | . . 3 . Utility 1 | . . 1 . Device . | . . . . Storage 1 | . . 1 . Processor . | . . . . Hackware . | . . . . Protection . | . . . . Artifact . | . . . . Weapon 6 | . . 2 4 Energy Gun 5 | . . 2 3 Energy Cannon . | . . . . Ballistic Gun . | . . . . Ballistic Cannon . | . . . . Launcher . | . . . . Special Weapon . | . . . . Impact Weapon . | . . . . Slashing Weapon 1 | . . . 1 Piercing Weapon . | . . . . Special Melee Weapon . | . . . . Unidentified Prototypes . | . . . . Corrupted Parts 1 | . . . 1 System Corruption 6 | . . . 6 Parts Lost 7 | . . . 7 Power 1 | . . . 1 Propulsion 2 | . . . 2 Utility 1 | . . . 1 Weapon 3 | . . . 3 Highest Loss Streak 7 | . . . 7 To Critical Strikes . | . . . . Average Slot Usage (%) 42 | . 35 40 50 Engine 10 | . 14 11 6 Leg 2 | . 8 . . Flight 11 | . . 12 20 Storage 4 | . 4 . 8 Energy Gun 12 | . 8 17 13 Naked Turns 5 | . . . 5 Heaviest Build 12 | 12 12 12 12 Greatest Support 20 | 20 20 12 12 Greatest Overweight (x) 2 | . . 2 1 Average Overweight (x) . | . . . . Largest Inventory Capacity 8 | . 8 8 8 Average Capacity 6 | . 5 5 7 Most Carried 7 | . 7 5 7 Average Carried 4 | . 4 4 5 Final Capacity 8 | 8 5 8 5 Final Carried 6 | 6 5 5 5 Class Distribution -------------------- 62% | Mutant 37% | Sprinter Dominant Class ---------------- Mutant | -10/Materials Mutant | -9/Materials Sprinter | -8/Materials Resources | -11 -10 -9 -8 ----------- Run | Yrd Mat Mat Mat Matter Collected 204 | 200 . . 4 Remotely . | . . . . Salvage Created 66 | . . 47 19 Parts 6 | . . 4 2 Haulers Intercepted . | . . . . Recyclers Shooed . | . . . . Parts Field Recycled . | . . . . Retrieved Matter . | . . . . Parts Self-Destructed . | . . . . Prevented . | . . . . Kills | -11 -10 -9 -8 ------- Run | Yrd Mat Mat Mat Combat Hostiles Destroyed 4 | . . 3 1 Guns 4 | . . 3 1 Classes Destroyed 3 | . . 2 1 Operator 1 | . . 1 . Swarmer 3 | . . 3 . Cutter 1 | . . . 1 Best Kill Streak 3 | . . 3 1 Combat Bots Only 3 | . . 3 1 Max Kills in Single Turn 1 | . . 1 1 Gunslinging . | . . . . Exploded . | . . . . Melee . | . . . . Uniques/NPCs Destroyed . | . . . . Combat | -11 -10 -9 -8 -------- Run | Yrd Mat Mat Mat Hostile Shots Fired 68 | . 1 18 49 Missed 21 | . 1 5 15 Damage Taken 1052 | . . 105 947 Core 622 | . . 39 583 Absorbed by Shields . | . . . . Core Remaining (%) 96 | 100 100 90 . Volleys Fired 19 | . . 7 12 Largest 2 | . . 2 2 Hottest 106 | . . 100 106 Shots Fired 32 | . . 14 18 Gun 32 | . . 14 18 Cannon . | . . . . Launcher . | . . . . Special . | . . . . Kinetic . | . . . . Thermal 32 | . . 14 18 Explosive . | . . . . Electromagnetic . | . . . . Robot Hit Streak 4 | . . 4 3 Robot Miss Streak 5 | . . 5 3 Penetration Max . | . . . . Secondary Targets . | . . . . Shots Hit Robots 16 | . . 7 9 Core Hits 10 | . . 5 5 Critical Kills . | . . . . Critical Parts Destroyed . | . . . . Critical Strikes 1 | . . . 1 Burn 1 | . . . 1 Melee Attacks 1 | . . . 1 Impact . | . . . . Slashing 1 | . . . 1 Piercing . | . . . . Sneak Attacks . | . . . . Combat Hostiles . | . . . . Follow-up Attacks . | . . . . Damage Inflicted 236 | . . 101 135 Guns 222 | . . 101 121 Cannons . | . . . . Explosions . | . . . . Melee 14 | . . . 14 Ramming . | . . . . Kinetic . | . . . . Thermal 222 | . . 101 121 Explosive . | . . . . Electromagnetic . | . . . . Impact . | . . . . Slashing 14 | . . . 14 Piercing . | . . . . Highest Corruption 6 | . . . 6 Average Corruption 6 | . . . 6 Corruption Purged . | . . . . Corruption Blocked . | . . . . Overload Shots . | . . . . Overflow Damage . | . . . . Projectiles . | . . . . Explosions . | . . . . Melee . | . . . . Knockbacks . | . . . . Impact . | . . . . Kinetic . | . . . . Secondary . | . . . . Self-Inflicted Damage . | . . . . Shots . | . . . . Rammed . | . . . . Targets Rammed . | . . . . Kicked . | . . . . Crushed . | . . . . Highest Temperature 180 | . . 180 147 Average Temperature 66 | . . 78 55 Received Heat Transfer 54 | . . . 54 Siege Activations . | . . . . Robots Corrupted . | . . . . Combat Hostiles . | . . . . Parts Fried . | . . . . Impact Corruptions . | . . . . Robots Melted . | . . . . Combat Hostiles . | . . . . Parts Melted 1 | . . . 1 Heat Transferred 703 | . . 296 407 Parts Sabotaged . | . . . . Parts Stolen . | . . . . Parts Stripped . | . . . . Power Chain Reactions . | . . . . Alert | -11 -10 -9 -8 ------- Run | Yrd Mat Mat Mat Peak Influence 121 | . 5 111 121 Initial 46 | . . 1 46 Average 45 | . . 63 74 Maximum Alert Level . | . . . . Low Security (%) 100 | . 100 100 100 Level 1 . | . . . . Level 2 . | . . . . Level 3 . | . . . . Level 4 . | . . . . Level 5 . | . . . . High Security . | . . . . Max Security . | . . . . Squads Dispatched 6 | . . . 6 Investigation . | . . . . Extermination . | . . . . Reinforcement 6 | . . . 6 Assault . | . . . . Garrison . | . . . . Intercept . | . . . . Searches Triggered . | . . . . Construction Impeded . | . . . . Haulers Reinforced . | . . . . Active Scanning Responses . | . . . . Cargo Convoy Interrupts . | . . . . Stealth | -11 -10 -9 -8 --------- Run | Yrd Mat Mat Mat Distress Signals 6 | . . 2 4 Communications Jammed . | . . . . Distress Signals . | . . . . Times Spotted 27 | . 2 7 18 Peak Tracking Total 12 | . 2 4 12 Tactical Retreats 2 | . . . 2 Traps | -11 -10 -9 -8 ------- Run | Yrd Mat Mat Mat Traps Triggered . | . . . . Indirectly . | . . . . Trap Hack Attempts . | . . . . Triggered . | . . . . Disarmed . | . . . . Reprogrammed . | . . . . Reused . | . . . . Traps Extracted . | . . . . Installed . | . . . . Triggered . | . . . . Machines | -11 -10 -9 -8 ---------- Run | Yrd Mat Mat Mat Machines Disabled . | . . . . Max in Single Turn . | . . . . Machines Repaired . | . . . . Machines Dismantled . | . . . . Machines Sabotaged . | . . . . Overloaded Fab Kills . | . . . . Hacking | -11 -10 -9 -8 --------- Run | Yrd Mat Mat Mat Machines Accessed 9 | . 4 3 2 Terminals 9 | . 4 3 2 Fabricators . | . . . . Repair Stations . | . . . . Recycling Units . | . . . . Scanalyzers . | . . . . Garrison Access . | . . . . Total Hacks 22 | . 11 8 3 Successful 11 | . 6 4 1 Failed 11 | . 5 4 2 Catastrophic 1 | . . . 1 Database Lockouts . | . . . . Manual 21 | . 10 8 3 Terminals 22 | . 11 8 3 Fabricators . | . . . . Repair Stations . | . . . . Recycling Units . | . . . . Scanalyzers . | . . . . Garrison Access . | . . . . Terminal Hacks 4 | . 2 2 . Prototype ID Bank 4 | . 2 2 . Fabricator Hacks . | . . . . Repair Station Hacks . | . . . . Recycling Unit Hacks . | . . . . Scanalyzer . | . . . . Garrison Access Hacks . | . . . . Unauthorized Hacks 7 | . 4 2 1 Terminals 7 | . 4 2 1 Botnet 6 | . 3 2 1 Operators 1 | . 1 . . Fabricators . | . . . . Repair Stations . | . . . . Recycling Units . | . . . . Scanalyzers . | . . . . Garrison Access . | . . . . Data Cores Recovered 1 | . . 1 . Used 1 | . . 1 . Hacking Detections 9 | . 4 3 2 Full Trace Events 1 | . . 1 . Feedback Events . | . . . . Feedback Blocked . | . . . . Robot Schematics Acquired . | . . . . Robots Built . | . . . . Authchips . | . . . . Time . | . . . . Total Robot Build Rating . | . . . . Part Schematics Acquired . | . . . . Parts Built . | . . . . Authchips . | . . . . Time . | . . . . Total Part Build Rating . | . . . . Parts Repaired . | . . . . Time . | . . . . Parts Recycled . | . . . . Recycled Matter . | . . . . Retrieved Matter . | . . . . Retrieved Components . | . . . . Parts Scanalyzed . | . . . . Part Schematics Acquired . | . . . . Parts Damaged . | . . . . Bothacking | -11 -10 -9 -8 ------------ Run | Yrd Mat Mat Mat Used RIF Installer . | . . . . Robots Hacked . | . . . . Non-combat . | . . . . Combat . | . . . . Robot Hacks Applied . | . . . . Relay Couplers Released . | . . . . Fabnet Peak Effective % . | . . . . Robots Rewired . | . . . . Allies Hacked . | . . . . Hacks Repelled . | . . . . Allies | -11 -10 -9 -8 -------- Run | Yrd Mat Mat Mat Total Allies . | . . . . Largest Group . | . . . . Highest-Rated Group . | . . . . Highest-Rated Ally . | . . . . Total Orders . | . . . . Ally Attacks . | . . . . Total Damage . | . . . . Kills . | . . . . Allies Corrupted . | . . . . Allies Melted . | . . . . Intel | -11 -10 -9 -8 ------- Run | Yrd Mat Mat Mat Robot Analysis Total . | . . . . Derelict Logs Recovered . | . . . . Drone Launches . | . . . . Drone Recoveries . | . . . . Exploration | -11 -10 -9 -8 ------------- Run | Yrd Mat Mat Mat Turns Passed 313 | . 107 91 115 Spaces Moved 520 | 1 164 145 210 Core 191 | . 140 35 16 Treads . | . . . . Legs 25 | 1 24 . . Wheels . | . . . . Hover . | . . . . Flight 304 | . . 110 194 Fastest Speed 32 | 120 50 32 32 Average Speed 44 | 120 60 41 33 Slowest Speed 150 | 120 120 150 100 Overloaded Moves . | . . . . Propulsion Burnouts . | . . . . Robots Hopped . | . . . . Cave-ins Triggered . | . . . . Exploration Rate (%) 18 | 2 29 17 24 Regions Visited 3 Branch Regions . Pre-discovered Areas . | . . . . Known Exits Taken . | . . . . Unknown Exits Taken 3 | 1 1 1 . Scrap Searched . | . . . . Spaces Dug . | . . . . Terrain Destroyed . | . . . . Melee . | . . . . Projectile . | . . . . AOE . | . . . . Terrain Rammed . | . . . . Walls Destroyed . | . . . . Machines Disabled . | . . . . Actions | -11 -10 -9 -8 --------- Run | Yrd Mat Mat Mat Total 569 | . 177 159 233 Wait . | . . . . Move 517 | . 163 144 210 Hop . | . . . . Pick Up 6 | . 3 1 2 Fast Attach 7 | . . 4 3 Attach 3 | . . 2 1 Detach 2 | . 2 . . Swap 2 | . . 1 1 Drop 12 | . 9 . 3 Fire 19 | . . 7 12 Melee 1 | . . . 1 Ram . | . . . . Kick . | . . . . Crush . | . . . . Escape Stasis . | . . . . Rewire . | . . . . Trap . | . . . . Miscellaneous . | . . . . Route ------- -11/Scrapyard -10/Materials -9/Materials (discovered 3 exits: *Mat / [*Min] / [*Sto]) -8/Materials History --------- Turn | Location | Event 1 | -11/Scrapyard | Discovered new exit (range 0) 1 | -11/Scrapyard | Entered Materials 89 | -10/Materials | Discovered new exit (range 16) 108 | -10/Materials | Entered another Materials area 108 | -9/Materials | Evolved 2 slots: Propulsion x2 108 | -9/Materials | Discovered new exit (range 8) 161 | -9/Materials | Discovered new exit (range 16) 182 | -9/Materials | Discovered new exit (range 11) 199 | -9/Materials | Entered another Materials area 199 | -8/Materials | Evolved 2 slots: Utility x2 302 | -8/Materials | Core integrity fell below 50% 308 | -8/Materials | Core integrity fell below 20% 314 | -8/Materials | Destroyed by H-61 Shepherd with Heavy Assault Cannon Last Messages --------------- 00304_ K-01 Serf collects debris. 00304_ Acquired Corrupted Blade Saw. 00304_ Integrated Corrupted Blade Saw (+6). 00304_ U-05 Engineer lays Concrete. 00305_ Penetrated by Slug. 00305_ Knocked back. 00305_ U-05 Engineer lays Concrete. 00306_ U-05 Engineer builds a Wall. 00306_ R-06 Scavenger collects Surge Thruster. 00307_ U-05 Engineer lays Concrete. 00307_ Knocked back. 00307_ K-01 Serf collects debris. 00307_ U-05 Engineer lays Concrete. 00309_ R-06 Scavenger collects Corrupted Surge Thruster. 00310_ U-05 Engineer lays Concrete. 00310_ W-25 Informer sends out distress signal. 00310_ U-05 Engineer lays Concrete. 00311_ Blade Saw destroyed. 00311_ U-05 Engineer lays Concrete. Map ----- +----------------------------------------------------+ | #??????# ?????# #??????????????????????? | | +#### #??????# ????# #??##??????????????????? | | ?? #??????# ????# #? ??????????????????? | | #? #?????## ???# #? """?????????????????? | | +?? ####### ???# #? """?????????????????? | | #??? [ ??# # """?????????????????? | | #??? ??# # """?? ??????????????? | | #####?????? ### # """ ???????????????? | | ??????????????# ## ??????????????????? | | ?????????????????# % #?????????????????????? | | ?????????????????##//H/ ########## #?????????? | | ?????????????????# // %= % #?????????? | | ?????????????????##[[ % u #?????????? | | ?????????????????# [[ * % """ """ ???????????? | | ?????????????????##!! % """ ""?????????????? | | ?????????????????##!!% """ """ ???????????? | | ??????????????????##### #?????????? | | ??????????????????????# m #?????????? | | ??????????????????????# g####/#+### +?????????? | | ??????????????????????# c ;#?? ??????????????? | | ??????????????????????# ;#??? #?????????????? | | ????????????########### ##???? #?????????????? | | ????????? #?????? #?????????????? | | ????????? #??????????????????????? | | ????????????########### #??????????????????????? | | ??????????????????????# @#??????????????????????? | | ??????????????????????# %#??????????????????????? | | ??????????????????????# ;??????????????????????? | | ?????????????????????# #?????????????????????? | | ?????????????????????# #?????????????????????? | | ?????????????????????/o Y ?????????????????????? | | ???????????????????? # #?????????????????????? | | ???????????????????" # #?????????????????????? | | ?????????????????? Y?#######?????????????????????? | | ?????????????????##??????????????????????????????? | | ?????????????????????????????????????????????????? | | ?????????????????????????????????????????????????? | | ?????????????????????????????????????????????????? | | ?????????????????????????????????????????????????? | | ?????????????????????????????????????????????????? | | ?????????????????????????????????????????????????? | | ?????????????????????????????????????????????????? | | ?????????????????????????????????????????????????? | | ?????????????????????????????????????????????????? | | | | | | | | | | | | | +----------------------------------------------------+ Best States ------------- Heat Dissipation 31 Energy Generation 10 Energy Capacity 125 Matter Stores 300 Matter Capacity 300 Sight Range 16 Terrain Scan Density 10 Evasion (%) 63 Recoil Reduction 1 Item Schematics ----------------- None Robot Schematics ------------------ None Fabricated ------------ Nothing Alien Tech Used ----------------- None Achievements -------------- None Challenges ------------ None Game ------ Seed RegenerativeLightpackLaser Manual? 0 Play Time 00:07:36 Cumulative 198.5 hours Start 2024.05.30 @ 15:03:47 End 2024.05.30 @ 15:09:09 Sessions 1 Manual Loads 0 Difficulty Rogue Special Mode None Game No. 364 Rogue 364 Adventurer 0 Explorer 0 Win Type - Total 0 Types 0/0/0/0/0/0/0/0/0 Lore% 45 Gallery% 56 Achievement% 39 Wizard Run 0 Options --------- Layout 1 ASCII 0 Keyboard 0 Movement Mouse Keybinds 0 Fullscreen 1 Font 24/Smallcaps Map View 50x40 Zoom Use 0% Tactical HUD 1 Map Filters NONE Filters NONE Steam 1 RUN: 6814f26f-4303-46be-a0c5-b07a4594947a